fUST/lending_fUST_20250208
["ID","MTS","AMOUNT","RATE_DAILY","PERIOD"]
[352217576,1739003449165,-500.0,0.0001178,2]
[352217577,1739003449180,-500.0,0.0001178,2]
[352217578,1739003449194,-3121.49,0.0001178,2]
[352217579,1739003449207,-1171.7,0.0001178,2]
[352217580,1739003449219,-6238.24,0.0001178,2]
[352217581,1739003449232,-535.46,0.0001178,2]
[352217582,1739003449244,-592.92,0.0001178,2]
[352217583,1739003449257,-500.0,0.0001178,2]
[352217584,1739003449270,-500.0,0.0001178,2]
[352217585,1739003449283,-500.0,0.0001178,2]
[352217586,1739003449295,-500.0,0.0001178,2]
[352217587,1739003449308,-2432.89,0.0001178,2]
[352217588,1739003449321,-1350.4,0.0001178,2]
[352217589,1739003449334,-2757.06,0.0001178,2]
[352217590,1739003449346,-546.4,0.0001178,2]
[352217591,1739003449361,-500.0,0.0001178,2]
[352217592,1739003449373,-1469.92,0.0001178,2]
[352217593,1739003449387,-633.5,0.0001178,2]
[352217594,1739003449401,-3526.39,0.0001178,2]
[352217595,1739003449412,-652.87,0.0001178,2]
[352217596,1739003449423,-500.0,0.0001178,2]
[352217597,1739003449434,-634.06,0.0001178,2]
[352217598,1739003449445,-1155.73,0.0001178,2]
[352217599,1739003449455,-18238.96,0.0001178,2]
[352217600,1739003449465,-1198.46,0.0001178,2]
[352217601,1739003449476,-298.92500528,0.0001178,2]
[352217602,1739003449485,-500.0,0.0001178,2]
[352217603,1739003449495,-627.08,0.0001178,2]
[352217604,1739003449505,-1234.54,0.0001178,2]
[352217605,1739003449516,-500.0,0.0001178,2]
[352217606,1739003449525,-500.0,0.0001178,2]
[352217607,1739003449535,-500.0,0.0001178,2]
[352217608,1739003449544,-500.0,0.0001178,2]
[352217609,1739003449554,-500.0,0.0001178,2]
[352217610,1739003449563,-971.24,0.0001178,2]
[352217611,1739003449573,-2943.05,0.0001178,2]
[352217612,1739003449583,-500.0,0.0001178,2]
[352217613,1739003449592,-1680.74,0.0001178,2]
[352217614,1739003449603,-1369.05,0.0001178,2]
[352217615,1739003449613,-189.822956,0.00011886,5]
[352217616,1739003449622,-151.0,0.00011916,2]
[352217617,1739003449632,-151.0,0.00011916,2]
[352217618,1739003449642,-151.0,0.00011916,2]
[352217619,1739003449651,-151.0,0.00011916,2]
[352217620,1739003449660,-108738.69544481,0.00011917,5]
[352217621,1739003449669,-151.0,0.00011917,2]
[352217622,1739003449679,-500.0,0.00011917,2]
[352217623,1739003449688,-500.0,0.00011917,2]
[352217624,1739003449698,-500.0,0.00011917,2]
[352217625,1739003449708,-637.57,0.00011917,2]
[352217626,1739003449717,-549.10874071,0.00011917,2]
[352217627,1739003449726,-500.0,0.00011917,2]
[352217628,1739003449736,-500.0,0.00011917,2]
[352217629,1739003449745,-500.0,0.00011917,2]
[352217630,1739003449754,-514.16,0.00011917,2]
[352217631,1739003449988,-500.0,0.00011917,2]
[352217632,1739003450003,-731.63,0.00011917,2]
[352217633,1739003450015,-500.0,0.00011917,2]
[352217634,1739003450025,-500.0,0.00011917,2]
[352217635,1739003450036,-413.58964998,0.00011917,2]
[352217636,1739003450045,-525.71,0.00011917,2]
[352217637,1739003450057,-516.36,0.00011917,2]
[352217638,1739003450068,-620.05,0.00011917,2]
[352217639,1739003450077,-670.67,0.00011917,2]
[352217640,1739003450086,-500.0,0.00011917,2]
[352217641,1739003450095,-214.08338915,0.00011917,2]
[352217642,1739003450106,-500.0,0.00011917,2]
[352217643,1739003450115,-500.0,0.00011917,2]
[352217644,1739003450124,-543.53,0.00011917,2]
[352217645,1739003450134,-500.0,0.00011917,2]
[352217646,1739003450144,-500.0,0.00011917,2]
[352217647,1739003450154,-500.0,0.00011917,2]
[352217648,1739003450163,-500.0,0.00011917,2]
[352217649,1739003450171,-514.87344771,0.00011917,2]
[352217650,1739003450181,-500.0,0.00011917,2]
[352217651,1739003450190,-151.0,0.00011917,2]
[352217652,1739003450199,-500.0,0.00011917,2]
[352217653,1739003450208,-881.38,0.00011917,2]
[352217654,1739003450217,-1212.51,0.00011917,2]
[352217655,1739003450227,-500.0,0.00011917,2]
[352217656,1739003450236,-500.0,0.00011917,2]
[352217657,1739003450245,-1221.85,0.00011917,2]
[352217658,1739003450254,-500.0,0.00011917,2]
[352217659,1739003450264,-500.0,0.00011917,2]
[352217660,1739003450273,-500.0,0.00011917,2]
[352217661,1739003450283,-500.0,0.00011917,2]
[352217662,1739003450291,-557.62,0.00011917,2]
[352217663,1739003450301,-500.0,0.00011917,2]
[352217664,1739003450310,-323.50840547,0.00011917,2]
[352217665,1739003450319,-500.0,0.00011917,2]
[352217666,1739003450328,-500.0,0.00011917,2]
[352217667,1739003450337,-500.0,0.00011917,2]
[352217668,1739003450346,-500.0,0.00011917,2]
[352217669,1739003450356,-500.0,0.00011917,2]
[352217670,1739003450365,-500.0,0.00011917,2]
[352217671,1739003450375,-151.0,0.00011917,2]
[352217672,1739003450384,-1429.72,0.00011917,2]
[352217673,1739003450393,-500.0,0.00011917,2]
[352217674,1739003450402,-832.44,0.00011917,2]
[352217675,1739003450411,-500.0,0.00011917,2]
[352217676,1739003450420,-500.0,0.00011917,2]
[352217677,1739003450430,-500.0,0.00011917,2]
[352217678,1739003450439,-500.0,0.00011917,2]
[352217679,1739003450449,-151.0,0.00011917,2]
[352217680,1739003450458,-653.11,0.00011917,2]
[352217681,1739003450467,-151.0,0.00011917,2]
[352217682,1739003450477,-2228.57,0.00011917,2]
[352217683,1739003450487,-1120.77,0.00011917,2]
[352217684,1739003450496,-637.99,0.00011917,2]
[352217685,1739003450506,-2940.9,0.00011917,2]
[352217686,1739003450515,-500.0,0.00011917,2]
[352217687,1739003450525,-615.34,0.00011917,2]
[352217688,1739003450534,-593.84,0.00011917,2]
[352217689,1739003450544,-500.0,0.00011917,2]
[352217690,1739003450553,-1110.71,0.00011917,2]
[352217691,1739003450563,-151.0,0.00011917,2]
[352217692,1739003450572,-500.0,0.00011917,2]
[352217693,1739003450582,-151.0,0.00011917,2]
[352217694,1739003450592,-1325.68,0.00011917,2]
[352217695,1739003450601,-151.0,0.00011917,2]
[352217696,1739003450611,-500.0,0.00011917,2]
[352217697,1739003450620,-151.0,0.00011917,2]
[352217698,1739003450629,-500.0,0.00011917,2]
[352217699,1739003450638,-2649.56,0.00011917,2]
[352217700,1739003450648,-11100.05,0.00011917,2]
[352217701,1739003450657,-500.0,0.00011917,2]
[352217702,1739003450667,-500.0,0.00011917,2]
[352217703,1739003450677,-872.15,0.00011917,2]
[352217704,1739003450686,-1455.66,0.00011917,2]
[352217705,1739003450695,-500.0,0.00011917,2]
[352217706,1739003450704,-1067.5,0.00011917,2]
[352217707,1739003450714,-1791.98,0.00011917,2]
[352217708,1739003450724,-3415.59,0.00011917,2]
[352217709,1739003450734,-500.0,0.00011917,2]
[352217710,1739003450743,-38394.76,0.00011917,2]
[352217711,1739003450753,-500.0,0.00011917,2]
[352217712,1739003450763,-500.0,0.00011917,2]
[352217713,1739003450772,-1279.35,0.00011917,2]
[352217714,1739003450781,-500.0,0.00011917,2]
[352217715,1739003450791,-1736.49,0.00011917,2]
[352217716,1739003450800,-1030.9,0.00011917,2]
[352217717,1739003450810,-500.0,0.00011917,2]
[352217718,1739003450819,-151.0,0.00011917,2]
[352217719,1739003450829,-151.0,0.00011917,2]
[352217720,1739003450838,-1004.87,0.00011917,2]
[352217721,1739003450848,-500.0,0.00011917,2]
[352217722,1739003450857,-1448.22,0.00011917,2]
[352217723,1739003450866,-151.0,0.00011917,2]
[352217724,1739003450876,-500.0,0.00011917,2]
[352217725,1739003450886,-500.0,0.00011917,2]
[352217726,1739003450895,-500.0,0.00011917,2]
[352217727,1739003450904,-678.31,0.00011917,2]
[352217728,1739003450914,-500.0,0.00011917,2]
[352217729,1739003450923,-500.0,0.00011917,2]
[352217730,1739003450933,-500.0,0.00011917,2]
[352217731,1739003450942,-500.0,0.00011917,2]
[352217732,1739003450951,-500.0,0.00011917,2]
[352217733,1739003450961,-500.0,0.00011917,2]
[352217734,1739003450970,-500.0,0.00011917,2]
[352217735,1739003450980,-500.0,0.00011917,2]
[352217736,1739003450989,-500.0,0.00011917,2]
[352217737,1739003450999,-550.77,0.00011917,2]
[352217738,1739003451008,-500.0,0.00011917,2]
[352217739,1739003451017,-500.0,0.00011917,2]
[352217740,1739003451026,-151.0,0.00011917,2]
[352217741,1739003451036,-3121.49,0.00011917,2]
[352217742,1739003451045,-6238.24,0.00011917,2]
[352217743,1739003451056,-1171.7,0.00011917,2]
[352217744,1739003451067,-592.92,0.00011917,2]
[352217745,1739003451076,-500.0,0.00011917,2]
[352217746,1739003451091,-500.0,0.00011917,2]
[352217747,1739003451102,-500.0,0.00011917,2]
[352217748,1739003451112,-460.0,0.00011917,2]
[352217749,1739003451121,-2432.89,0.00011917,2]
[352217750,1739003451131,-151.0,0.00011917,2]
[352217751,1739003451140,-1350.4,0.00011917,2]
[352217752,1739003451151,-2757.06,0.00011917,2]
[352217753,1739003451160,-546.4,0.00011917,2]
[352217754,1739003451170,-500.0,0.00011917,2]
[352217755,1739003451179,-1469.92,0.00011917,2]
[352217756,1739003451189,-633.5,0.00011917,2]
[352217757,1739003451198,-3526.39,0.00011917,2]
[352217758,1739003451208,-652.87,0.00011917,2]
[352217759,1739003451217,-500.0,0.00011917,2]
[352217760,1739003451227,-634.06,0.00011917,2]
[352217761,1739003451238,-1155.73,0.00011917,2]
[352217762,1739003451248,-18238.96,0.00011917,2]
[352217763,1739003451257,-1198.46,0.00011917,2]
[352217764,1739003451267,-500.0,0.00011917,2]
[352217765,1739003451276,-627.08,0.00011917,2]
[352217766,1739003451286,-1234.54,0.00011917,2]
[352217767,1739003451296,-500.0,0.00011917,2]
[352217768,1739003451305,-500.0,0.00011917,2]
[352217769,1739003451314,-500.0,0.00011917,2]
[352217770,1739003451323,-500.0,0.00011917,2]
[352217771,1739003451333,-218.15508321,0.00011917,2]
[352217772,1739003451342,-971.24,0.00011917,2]
[352217773,1739003451351,-2943.05,0.00011917,2]
[352217774,1739003451362,-500.0,0.00011917,2]
[352217775,1739003451371,-1680.74,0.00011917,2]
[352217776,1739003451381,-151.0,0.00011917,2]
[352217777,1739003451390,-1369.05,0.00011917,2]
[352217778,1739003451399,-182.1381013,0.00011973,2]
[352217779,1739003451409,-153.0,0.00011973,2]
[352217780,1739003451419,-153.0,0.00011973,2]
[352217781,1739003451428,-153.0,0.00011973,2]
[352217782,1739003451437,-153.0,0.00011973,2]
[352217783,1739003451447,-4686.88813011,0.00012,2]
[352217784,1739003451456,-2000.000001,0.00012,2]
[352217785,1739003451466,-189.822956,0.00012013,5]
[352217786,1739003451475,-502.63900238,0.00012027,2]
[352217787,1739003451485,-420.0,0.00012041,2]
[352217788,1739003451495,-151.0,0.00012053,2]
[352217789,1739003451505,-151.0,0.00012053,2]
[352217790,1739003451514,-633073.48396364,0.00012054,5]
[352217791,1739003451523,-151.0,0.00012054,2]
[352217792,1739003451532,-345.231396,0.00012054,2]
[352217793,1739003451542,-345.231396,0.00012054,2]
[352217794,1739003451551,-536.381281,0.00012054,2]
[352217795,1739003451560,-536.381281,0.00012054,2]
[352217796,1739003451570,-151.0,0.00012054,2]
[352217797,1739003451579,-500.0,0.00012054,2]
[352217798,1739003451588,-500.0,0.00012054,2]
[352217799,1739003451597,-151.0,0.00012054,2]
[352217800,1739003451607,-637.57,0.00012054,2]
[352217801,1739003451616,-500.0,0.00012054,2]
[352217802,1739003451625,-500.0,0.00012054,2]
[352217803,1739003451634,-500.0,0.00012054,2]
[352217804,1739003451643,-189.859047,0.00012054,2]
[352217805,1739003451652,-334.18202209,0.00012054,2]
[352217806,1739003451661,-731.63,0.00012054,2]
[352217807,1739003451671,-189.859047,0.00012054,2]
[352217808,1739003451680,-221.98709974,0.00012054,2]
[352217809,1739003451690,-500.0,0.00012054,2]
[352217810,1739003451699,-516.36,0.00012054,2]
[352217811,1739003451709,-620.05,0.00012054,2]
[352217812,1739003451719,-670.67,0.00012054,2]
[352217813,1739003451729,-500.0,0.00012054,2]
[352217814,1739003451739,-500.0,0.00012054,2]
[352217815,1739003451749,-500.0,0.00012054,2]
[352217816,1739003451759,-543.53,0.00012054,2]
[352217817,1739003451769,-500.0,0.00012054,2]
[352217818,1739003451778,-151.0,0.00012054,2]
[352217819,1739003451788,-500.0,0.00012054,2]
[352217820,1739003451797,-500.0,0.00012054,2]
[352217821,1739003451807,-500.0,0.00012054,2]
[352217822,1739003451816,-500.0,0.00012054,2]
[352217823,1739003451826,-500.0,0.00012054,2]
[352217824,1739003451835,-881.38,0.00012054,2]
[352217825,1739003451845,-1212.51,0.00012054,2]
[352217826,1739003451855,-500.0,0.00012054,2]
[352217827,1739003451865,-500.0,0.00012054,2]
[352217828,1739003451874,-1221.85,0.00012054,2]
[352217829,1739003451884,-500.0,0.00012054,2]
[352217830,1739003451893,-500.0,0.00012054,2]
[352217831,1739003451903,-500.0,0.00012054,2]
[352217832,1739003451914,-500.0,0.00012054,2]
[352217833,1739003451925,-557.62,0.00012054,2]
[352217834,1739003451934,-500.87565422,0.00012054,2]
[352217835,1739003451944,-250.6719059,0.00012054,2]
[352217836,1739003451953,-500.0,0.00012054,2]
[352217837,1739003451963,-500.0,0.00012054,2]
[352217838,1739003451973,-500.0,0.00012054,2]
[352217839,1739003451982,-151.0,0.00012054,2]
[352217840,1739003451991,-500.0,0.00012054,2]
[352217841,1739003452001,-500.0,0.00012054,2]
[352217842,1739003452011,-1429.72,0.00012054,2]
[352217843,1739003452020,-500.0,0.00012054,2]
[352217844,1739003452030,-832.44,0.00012054,2]
[352217845,1739003452040,-500.0,0.00012054,2]
[352217846,1739003452050,-500.0,0.00012054,2]
[352217847,1739003452063,-500.0,0.00012054,2]
[352217848,1739003452073,-500.0,0.00012054,2]
[352217849,1739003452082,-653.11,0.00012054,2]
[352217850,1739003452092,-2228.57,0.00012054,2]
[352217851,1739003452102,-1120.77,0.00012054,2]
[352217852,1739003452115,-637.99,0.00012054,2]
[352217853,1739003452124,-2940.9,0.00012054,2]
[352217854,1739003452135,-500.0,0.00012054,2]
[352217855,1739003452144,-615.34,0.00012054,2]
[352217856,1739003452153,-593.84,0.00012054,2]
[352217857,1739003452163,-500.0,0.00012054,2]
[352217858,1739003452172,-1110.71,0.00012054,2]
[352217859,1739003452182,-1325.68,0.00012054,2]
[352217860,1739003452191,-500.0,0.00012054,2]
[352217861,1739003452201,-2649.56,0.00012054,2]
[352217862,1739003452210,-5985.83423379,0.00012054,2]
[352217863,1739003452393,-500.0,0.00010958,2]
[352217864,1739003452402,-33.95664957,0.00011147,2]
[352217865,1739003452413,-512.85629558,0.00011147,2]
[352217866,1739003452786,-236.52116316,0.00010958,2]
[352217867,1739003452795,-518.85485191,0.00010958,2]
[352217868,1739003452805,-500.0,0.00010958,2]
[352217869,1739003452814,-3067.07687143,0.00011147,2]
[352217870,1739003452832,-500.0,0.00011095,2]
[352217871,1739003452841,-1162.5,0.00011147,2]
[352217872,1739003452853,-769.99751382,0.00011147,2]
[352217873,1739003453211,4320.613,8.002e-05,2]
[352217908,1739004632035,-317.7,9.992e-05,2]
[352217909,1739004632044,-96.6187998,0.00010049,2]
[352217910,1739004632056,-598.1376359,0.00010049,2]
[352217911,1739004632065,-177.79795722,0.00010858,2]
[352217912,1739004632074,-300.0,0.00010956,2]
[352217913,1739004632083,-500.0,0.00010957,2]
[352217914,1739004632092,-500.0,0.00010957,2]
[352217915,1739004632101,-500.0,0.00010957,2]
[352217916,1739004632110,-300.0,0.00010957,2]
[352217917,1739004632120,-552.26226718,0.00010957,2]
[352217918,1739004632130,-500.0,0.00010957,2]
[352217919,1739004632139,-500.0,0.00010957,2]
[352217921,1739004632148,-500.0,0.00010957,2]
[352217923,1739004632157,-629.00378803,0.00010957,2]
[352217925,1739004632165,-500.0,0.00010957,2]
[352217927,1739004632174,-359.25810627,0.00010957,2]
[352217929,1739004632189,-53.82892467,0.00010957,2]
[352217931,1739004632198,-500.0,0.00010957,2]
[352217934,1739004632208,-500.0,0.00010957,2]
[352217936,1739004632217,-581.29429784,0.00010957,2]
[352217938,1739004632226,-500.0,0.00010958,2]
[352217940,1739004632236,-500.0,0.00010958,2]
[352217942,1739004632245,-500.0,0.00010958,2]
[352217944,1739004632254,-500.0,0.00010958,2]
[352217946,1739004632263,-500.0,0.00010958,2]
[352217948,1739004632272,-500.0,0.00010958,2]
[352217950,1739004632281,-500.0,0.00010958,2]
[352217952,1739004632291,-636.12745261,0.00010958,2]
[352217954,1739004632300,-500.0,0.00010958,2]
[352217955,1739004632309,-500.0,0.00010958,2]
[352217956,1739004632319,-260.57432456,0.00010958,2]
[352217957,1739004632334,-239.42567544,0.00010958,2]
[352217958,1739004632349,-500.0,0.00010958,2]
[352217960,1739004632358,-500.0,0.00010958,2]
[352217962,1739004632368,-500.0,0.00010958,2]
[352217963,1739004632378,-129.60836421,0.00010958,2]
[352217964,1739004632390,-349.06776028,0.00010958,2]
[352217966,1739004632402,-21.32387551,0.00010958,2]
[352217967,1739004632411,-446.19554981,0.00010958,2]
[352217968,1739004632420,-368.09917147,0.00010958,2]
[352217969,1739004632430,-500.0,0.00010958,2]
[352217970,1739004632439,-500.0,0.00010958,2]
[352217971,1739004632452,-500.0,0.00010958,2]
[352217972,1739004632461,-502.46518186,0.00010958,2]
[352217973,1739004632471,-500.0,0.00010958,2]
[352217974,1739004632481,-282.63736111,0.00010958,2]
[352217998,1739004637848,-217.36263889,0.00010958,2]
[352217999,1739004637858,-500.0,0.00010958,2]
[352218000,1739004637867,-500.0,0.00010958,2]
[352218001,1739004637877,-500.0,0.00010958,2]
[352218002,1739004637890,-500.0,0.00010958,2]
[352218003,1739004637899,-496.71519448,0.00010958,2]
[352218004,1739004637909,-500.0,0.00010958,2]
[352218005,1739004637918,-205.72830852,0.00010958,2]
[352218006,1739004637930,-294.27169148,0.00010958,2]
[352218007,1739004637939,-500.0,0.00010958,2]
[352218008,1739004637948,-500.0,0.00010958,2]
[352218009,1739004637957,-500.0,0.00010958,2]
[352218010,1739004637967,-557.68,0.00010958,2]
[352218012,1739004637977,-500.0,0.00010958,2]
[352218014,1739004637986,-500.0,0.00010958,2]
[352218017,1739004637995,-500.0,0.00010958,2]
[352218019,1739004638004,-500.0,0.00010958,2]
[352218021,1739004638015,-218.42818584,0.00010958,2]
[352218023,1739004638027,-281.57181416,0.00010958,2]
[352218025,1739004638036,-500.0,0.00010958,2]
[352218027,1739004638045,-500.0,0.00010958,2]
[352218029,1739004638054,-500.0,0.00010958,2]
[352218031,1739004638063,-500.0,0.00010958,2]
[352218033,1739004638072,-500.0,0.00010958,2]
[352218035,1739004638081,-500.0,0.00010958,2]
[352218037,1739004638090,-500.0,0.00010958,2]
[352218039,1739004638100,-500.0,0.00010958,2]
[352218040,1739004638109,-500.0,0.00010958,2]
[352218041,1739004638119,-500.0,0.00010958,2]
[352218042,1739004638128,-500.0,0.00010958,2]
[352218043,1739004638140,-500.0,0.00010958,2]
[352218044,1739004638149,-500.0,0.00010958,2]
[352218045,1739004638158,-500.0,0.00010958,2]
[352218046,1739004638167,-500.0,0.00010958,2]
[352218047,1739004638177,-500.0,0.00010958,2]
[352218048,1739004638186,-500.0,0.00010958,2]
[352218049,1739004638196,-549.77759903,0.00010958,2]
[352218050,1739004638205,-500.0,0.00010958,2]
[352218051,1739004638214,-32.95184381,0.00010958,2]
[352218052,1739004638227,-467.04815619,0.00010958,2]
[352218053,1739004638236,-500.0,0.00010958,2]
[352218054,1739004638246,-500.0,0.00010958,2]
[352218055,1739004638255,-500.0,0.00010958,2]
[352218056,1739004638265,-500.0,0.00010958,2]
[352218057,1739004638275,-500.0,0.00010958,2]
[352218058,1739004638283,-500.0,0.00010958,2]
[352218059,1739004638293,-500.0,0.00010958,2]
[352218060,1739004638302,-500.0,0.00010958,2]
[352218061,1739004638311,-500.0,0.00010958,2]
[352218062,1739004638320,-500.0,0.00010958,2]
[352218063,1739004638330,-500.0,0.00010958,2]
[352218064,1739004638338,-645.97,0.00010958,2]
[352218065,1739004638347,-500.0,0.00010958,2]
[352218066,1739004638357,-500.0,0.00010958,2]
[352218067,1739004638366,-500.0,0.00010958,2]
[352218068,1739004638375,-500.0,0.00010958,2]
[352218069,1739004638385,-500.0,0.00010958,2]
[352218070,1739004638394,-500.0,0.00010958,2]
[352218071,1739004638403,-500.0,0.00010958,2]
[352218072,1739004638411,-500.0,0.00010958,2]
[352218073,1739004638421,-500.0,0.00010958,2]
[352218074,1739004638430,-500.0,0.00010958,2]
[352218075,1739004638439,-500.0,0.00010958,2]
[352218076,1739004638452,-500.0,0.00010958,2]
[352218077,1739004638461,-500.0,0.00010958,2]
[352218078,1739004638471,-500.0,0.00010958,2]
[352218079,1739004638480,-500.0,0.00010958,2]
[352218080,1739004638489,-500.0,0.00010958,2]
[352218081,1739004638498,-500.0,0.00010958,2]
[352218082,1739004638507,-500.0,0.00010958,2]
[352218083,1739004638516,-500.0,0.00010958,2]
[352218084,1739004638526,-500.0,0.00010958,2]
[352218085,1739004638535,-500.0,0.00010958,2]
[352218086,1739004638544,-500.0,0.00010958,2]
[352218087,1739004638554,-588.64550532,0.00010958,2]
[352218088,1739004638563,-500.0,0.00010958,2]
[352218089,1739004638573,-601.18,0.00010958,2]
[352218090,1739004638582,-500.0,0.00010958,2]
[352218091,1739004638591,-500.0,0.00010958,2]
[352218092,1739004638601,-500.0,0.00010958,2]
[352218093,1739004638610,-814.82,0.00010958,2]
[352218094,1739004638620,-500.0,0.00010958,2]
[352218095,1739004638629,-500.0,0.00010958,2]
[352218096,1739004638640,-500.0,0.00010958,2]
[352218097,1739004638650,-500.0,0.00010958,2]
[352218098,1739004638659,-500.0,0.00010958,2]
[352218099,1739004638669,-500.0,0.00010958,2]
[352218100,1739004638679,-500.0,0.00010958,2]
[352218101,1739004638690,-500.0,0.00010958,2]
[352218102,1739004638701,-500.0,0.00010958,2]
[352218103,1739004638712,-500.0,0.00010958,2]
[352218104,1739004638721,-500.0,0.00010958,2]
[352218105,1739004638730,-500.0,0.00010958,2]
[352218106,1739004638741,-500.0,0.00010958,2]
[352218107,1739004638751,-500.0,0.00010958,2]
[352218108,1739004638761,-584.37,0.00010958,2]
[352218109,1739004638772,-500.0,0.00010958,2]
[352218110,1739004638783,-500.0,0.00010958,2]
[352218111,1739004638792,-796.4,0.00010958,2]
[352218112,1739004638804,-500.0,0.00010958,2]
[352218113,1739004638814,-717.23,0.00010958,2]
[352218114,1739004638823,-255.3615794,0.00010958,2]
[352218115,1739004638832,-500.0,0.00010958,2]
[352218116,1739004638842,-500.0,0.00010958,2]
[352218117,1739004638851,-500.0,0.00010958,2]
[352218118,1739004638861,-500.0,0.00010958,2]
[352218119,1739004638870,-500.0,0.00010958,2]
[352218120,1739004638880,-500.0,0.00010958,2]
[352218121,1739004638889,-500.0,0.00010958,2]
[352218122,1739004638899,-500.0,0.00010958,2]
[352218123,1739004638910,-500.0,0.00010958,2]
[352218124,1739004638922,-500.0,0.00010958,2]
[352218125,1739004638932,-500.0,0.00010958,2]
[352218126,1739004638942,-500.0,0.00010958,2]
[352218127,1739004638953,-500.0,0.00010958,2]
[352218128,1739004638963,-500.0,0.00010958,2]
[352218129,1739004638974,-500.0,0.00010958,2]
[352218130,1739004638983,-500.0,0.00010958,2]
[352218131,1739004638993,-500.0,0.00010958,2]
[352218132,1739004639004,-500.0,0.00010958,2]
[352218133,1739004639014,-500.0,0.00010958,2]
[352218134,1739004639025,-500.0,0.00010958,2]
[352218135,1739004639035,-500.0,0.00010958,2]
[352218136,1739004639046,-500.0,0.00010958,2]
[352218137,1739004639055,-500.0,0.00010958,2]
[352218138,1739004639066,-500.0,0.00010958,2]
[352218139,1739004639076,-500.0,0.00010958,2]
[352218140,1739004639085,-500.0,0.00010958,2]
[352218141,1739004639095,-500.0,0.00010958,2]
[352218142,1739004639105,-500.0,0.00010958,2]
[352218143,1739004639115,-500.0,0.00010958,2]
[352218144,1739004639124,-1143.72,0.00010958,2]
[352218145,1739004639134,-500.0,0.00010958,2]
[352218146,1739004639144,-500.0,0.00010958,2]
[352218147,1739004639153,-500.0,0.00010958,2]
[352218148,1739004639162,-500.0,0.00010958,2]
[352218149,1739004639171,-500.0,0.00010958,2]
[352218150,1739004639181,-500.0,0.00010958,2]
[352218151,1739004639190,-500.0,0.00010958,2]
[352218152,1739004639199,-500.0,0.00010958,2]
[352218153,1739004639208,-500.0,0.00010958,2]
[352218154,1739004639218,-500.0,0.00010958,2]
[352218155,1739004639227,-500.0,0.00010958,2]
[352218156,1739004639237,-500.0,0.00010958,2]
[352218157,1739004639255,-500.0,0.00010958,2]
[352218158,1739004639265,-500.0,0.00010958,2]
[352218159,1739004639274,-500.0,0.00010958,2]
[352218160,1739004639284,-1428.17,0.00010958,2]
[352218161,1739004639293,-500.0,0.00010958,2]
[352218162,1739004639303,-500.0,0.00010958,2]
[352218163,1739004639313,-500.0,0.00010958,2]
[352218164,1739004639322,-500.0,0.00010958,2]
[352218165,1739004639332,-500.0,0.00010958,2]
[352218166,1739004639341,-678.64,0.00010958,2]
[352218167,1739004639350,-500.0,0.00010958,2]
[352218168,1739004639360,-1478.44,0.00010958,2]